Workbook

Sheet A propos du Cahier
B15: INSTRUCTIONS
B16: Toutes les données doivent être insérées dans le «Tableau de bord».
B17: Les cellules en bleu clair sont des cellules d'entrée ; d'autres cellules sont protégées pour garantir l'intégrité du Cahier.
B18: Le tableau de bord affichera un résumé des résultats de la planification de l'espace.
B20: COMMENT UTILISER CE CAHIER
B24: 1) ENTRER le nom du projet/ministère et l'adresse du projet dans les champs appropriés.
B26: 2) SÉLECTIONNEZ LE PROFIL D'ACTIVITÉ SOUHAITÉ Sélectionnez dans la liste déroulante l'un des 3 profils en fonction des éléments suivants :
C28: Le profil autonome est mieux adapté aux groupes qui travailleront individuellement au bureau avec un niveau d'interaction limité. Il présente la plus forte proportion de points de travail individuels.
C30: Le profil équilibré convient mieux aux groupes qui travailleront à la fois individuellement et en collaboration au bureau avec un niveau d'interaction modéré. Il a la distribution la plus équilibrée de points de travail avec une proportion égale de points de travail individuels et collaboratifs.
C32: Le profil interactif est mieux adapté aux groupes qui travailleront en collaboration au bureau avec un niveau élevé d'interaction. Il présente la plus forte proportion de points de travail collaboratifs.
B34: 3) ENTREZ LES DONNÉES CONNUES Entrez les données clés dans les cellules appropriées. Entrez la solution d'espace en m²u et la population actuelle. Cela déterminera l'occupation cible qui est utilisée pour calculer les ratios et les distributions de points de travail optimaux.
B36: 4) AJUSTEZ CHAQUE POINT DE TRAVAIL INDIVIDUEL AU BESOIN Une distribution idéale de la quantité de points de travail sera automatiquement calculée pour chaque catégorie. Ceux-ci peuvent être modifiés manuellement pour répondre aux exigences ou préférences spécifiques du client, dans une plage prédéterminée, en utilisant les barres situées à côté de chaque cellule. La cellule deviendra orange si une quantité est trop élevée et bleue si une quantité est trop faible.
C37: - Faites défiler la barre vers la droite pour augmenter les quantités (augmente de 1 unité)
C38: -Faites défiler la barre vers la gauche pour diminuer les quantités (diminue d'une unité)
B39: Cliquez sur le bouton «Réinitialiser» pour réinitialiser toutes les cellules aux montants suggérés.
B41: 5) VÉRIFIER LES SURPLUS/DÉFICITS POUR ASSURER UNE PLANIFICATION OPTIMALE DE L'ESPACE Si vous dépassez l'espace disponible, le nombre deviendra ROUGE pour mettre en évidence le déficit. S'il vous reste de l'espace pour planifier, le nombre deviendra VERT pour indiquer le surplus. Ajustez simplement les quantités de points de travail en conséquence.
A43: CLIQUEZ ICI POUR COMMENCER A PLANIFIER
B46: ANNEXE | C46: Détails des points de travail du Milieu de travail GC
H48: DATE DE SORTIE DE LA VERSION : | I48: 2024-04-11

Sheet Tableau de Bord
A1: CAHIER DE PLANIFICATION DU Milieu de travail GC
C3: INSCRIRE LES INFORMATIONS SUR LE PROJET | P3: VÉRIFIER LE RÉSULTAT
D4: Nom de projet / Ministère: | P4: Solution d'espace total | Q4: =E13 -> 0
D5: Adresse du projet: | P5: ="Circulation ("&S5&"%)" -> Circulation (35%) | Q5: =SUM(E13*-(S5/100)) -> 0 | S5: 35 | T5: Adjust Circulation (35 - 40%) and Building Fit Factor (6 - 10%) as required
P6: ="Facteur d'ajustement du batiment ("&S6&"%)" -> Facteur d'ajustement du batiment (6%) | Q6: =E13*-(S6/100) -> 0 | S6: 6
C7: CHOISIR LE PROFIL D'ACTIVITÉ | E7: WORKPOINT DISTRIBUTION COMPARISON | P7: ESPACE DE PLANIFICATION | Q7: =SUM(Q4:Q6) -> 0
C8: 1 | E8: Profil d'activité | I8: =HIDE!A37 -> Autonome | K8: =HIDE!A38 -> Équilibré | M8: =HIDE!A39 -> Interactif
E9: Points de travail individuels | I9: 50-65% | K9: 30-50% | M9: 5-30% | P9: Points de travail individuels | Q9: =M34 -> 0
E10: Points de travail collaboratifs et espace de soutien | I10: 35-50% | K10: 50-70% | M10: 70-95% | P10: Point de travail collaboratifs | Q10: =M46 -> 0
P11: Espace de soutien | Q11: =X36 -> 0
C12: INSCRIRE LES DONNÉES CLÉS | P12: ESPACE ALLOUÉ | Q12: =SUM(Q9:Q11) -> 0
D13: Solution d'espace en m2u: | E13: 0 | G13: (Inclut AUCUN local à usage particulier (LUP))
D14: L'espace est conçu pour : | E14: =ROUND(E13/11,0) -> 0 | G14: La capacité de charge maximale des occupants ne doit jamais dépasser ce que | P14: Espace de planification | Q14: =Q7 -> 0
D15: Current number of FTEs: | E15: 0 | G15: l'autorité compétente autorise (ex: le code national de la bâtiment) | P15: Espace alloué | Q15: =-Q12 -> 0
D16: Built-in growth: | G16: (obtained by subtracting actual population from target occupancy) | P16: =IF(Q16=0,"PAS DE SURPLUS / DÉFICIT", IF(Q16>0,"SURPLUS","DEFICIT")) -> PAS DE SURPLUS / DÉFICIT | Q16: =Q7-Q12 -> 0
D17: Population à temps plein (LUP): | G17: (Uniquement lorsqu'il est directement adjacent au bureau général)
C19: AJUSTER LE NOMBRE DE POINTS DE TRAVAIL | P19: VERIFIER SURPLUS / DÉFICIT | Q19: =Q16 -> 0
B22: POINTS DE TRAVAIL INDIVIDUELS | E22: Nombre total de siège | F22: Allocation Standard | G22: QTÉ | H22: Ajuster les quantités de points de travail requises à l'aide des barres | K22: Taille suggérée | M22: Espace requis | O22: ESPACES DE SOUTIEN | R22: Allocation Standard | S22: QTÉ. | T22: Ajuster les quantités de points de travail requises à l'aide des barres | V22: Taille suggérée | X22: Espace requis
B23: =HIDE!A6 -> PRIMAIRE INDIVIDUEL OUVERT | C23: =HIDE!B6 -> Poste de travail | E23: =G23+G24 -> 0 | F23: =HIDE!M6 -> 0 | G23: 0 | J23: x | K23: 3.5 | L23: = | M23: =G23*K23 -> 0 | O23: =HIDE!A22 -> ESPACE À USAGE GÉNÉRAL | P23: =HIDE!B22 -> Cuisinette | R23: =HIDE!M22 -> 0 | S23: 0 | T23: 2 | U23: x | V23: 5 | W23: = | X23: =S23*V23 -> 0
C24: =HIDE!B7 -> Capsule de travail | F24: =HIDE!M7 -> 0 | G24: 0 | J24: x | K24: 2.5 | L24: = | M24: 0 | P24: =HIDE!B23 -> Salle de mieux-être | R24: =HIDE!M23 -> 0 | S24: 0 | T24: 2 | U24: x | V24: 7.5 | W24: = | X24: 0
E25: =G23+G24 -> 0 | M25: =M23+M24 -> 0 | P25: =HIDE!B24 -> Salle d'équipement | R25: =HIDE!M24 -> 0 | S25: 0 | T25: 2 | U25: x | V25: 5 | W25: = | X25: 0
B26: =HIDE!A8 -> PRIMAIRE INDIVIDUEL FERMÉ | C26: =HIDE!B8 -> Salle de concentration | E26: =G26+G27+G28 -> 0 | F26: =HIDE!M8 -> 0 | G26: 0 | J26: x | K26: 7.5 | L26: = | M26: =G26*K26 -> 0 | P26: =HIDE!B25 -> Casiers (Espace par ETP) | R26: =HIDE!M25 -> 0 | S26: 0 | T26: 116 | U26: x | V26: 0.5 | W26: = | X26: =S26*V26 -> 0
C27: =HIDE!B9 -> Espace ministériel dédié (sous-ministre ou ministre) | F27: 0 | G27: 0 | J27: x | K27: 29 | L27: = | M27: 0 | P27: =HIDE!B26 -> Rangement partagé | R27: =HIDE!M26 -> 0 | S27: 0 | T27: 1 | U27: x | V27: 5 | W27: = | X27: 0
C28: =HIDE!B10 -> Salle d'étdue (5m2 par occupant) | F28: =HIDE!M10 -> 0 | G28: 0 | J28: x | K28: 5 | L28: = | M28: 0 | P28: =HIDE!B27 -> Salle des serveurs/télécommunication dédiée (1 par étage) | R28: =HIDE!M27 -> 0 | S28: 0 | T28: 1 | U28: x | V28: 10 | W28: = | X28: 0
E29: =G26+G27+G28 -> 0 | M29: =M26+M27+M28 -> 0 | O29: =HIDE!A28 -> POINT DE TRAVAIL SUPPLÉMENTAIRES POUR LA POPULATION DU LUP ADJACENT | P29: =HIDE!B28 -> Cabine / Salle Téléphonique | R29: =HIDE!M28 -> 0 | S29: 0 | T29: 0 | U29: x | V29: 6.5 | W29: = | X29: 0
B30: =HIDE!A11 -> SECONDAIRE INDIVIDUEL | C30: =HIDE!B11 -> Capsule de concentration | E30: =G30+G31+G32 -> 0 | F30: =HIDE!M11 -> 0 | G30: 0 | J30: x | K30: 4 | L30: = | M30: 0 | P30: =HIDE!B29 -> Salon | R30: =HIDE!M29 -> 0 | S30: 0 | T30: 0 | U30: x | V30: 10 | W30: = | X30: 0
C31: =HIDE!B12 -> Point de transition (1.5m2 par occupant) | F31: =HIDE!M12 -> 0 | G31: 0 | J31: x | K31: 1.5 | L31: = | M31: 0 | P31: =HIDE!B30 -> Salle de travail | R31: =HIDE!M30 -> 0 | S31: 0 | T31: 0 | U31: x | V31: 15 | W31: = | X31: 0
C32: =HIDE!B13 -> Cabine / Salle Téléphonique | F32: =HIDE!M13 -> 0 | G32: 0 | J32: x | K32: 6.5 | L32: = | M32: 0 | P32: =HIDE!B31 -> Cuisinette | R32: =HIDE!M31 -> 0 | S32: 0 | T32: 0 | U32: x | V32: 5 | W32: = | X32: 0
E33: =G30+G31+G32 -> 0 | M33: =M30+M31+M32 -> 0 | P33: =HIDE!B32 -> Casiers (Espace par ETP) | R33: =HIDE!M32 -> 0 | S33: 0 | T33: 0 | U33: x | V33: 0.5 | W33: = | X33: 0
C34: Nombre total de sièges individuels | E34: =SUM(E25+E29+E33) -> 0 | L34: Espace total de points de travail individuels | M34: =SUM(M23:M24)+SUM(M26:M28)+SUM(M30:M32) -> 0 | O34: OTHER | P34: =HIDE!B33 -> Espace de soutien personnalisé | R34: =HIDE!M33 -> 0 | S34: 0 | T34: 0 | U34: x | V34: 0 | W34: = | X34: =S34*V34 -> 0
B35: COLLABORATIVE WORKPOINTS | E35: Nombre de siège estimé | F35: Allocation Standard | G35: QTÉ. | H35: Ajuster les quantités de points de travail requises à l'aide des barres | K35: Taille suggérée | M35: Espace requis | P35: =HIDE!B34 -> Point de travail personnalisé | R35: =HIDE!M34 -> 0 | S35: 0 | T35: 0 | U35: x | V35: 0 | W35: = | X35: 0
B36: =HIDE!A14 -> COLLABORATIF OUVERT | C36: =HIDE!B14 -> Point de discussion | E36: =SUM(G36)*4 -> 0 | F36: =HIDE!M14 -> 0 | G36: 0 | J36: x | K36: 4 | L36: = | M36: =G36*K36 -> 0 | P36: Espace total pour les espaces de soutien | X36: =SUM(X23:X24)+SUM(X25:X35) -> 0
C37: =HIDE!B15 -> Enclave | E37: =SUM(G37)*4 -> 0 | F37: =HIDE!M15 -> 0 | G37: 0 | J37: x | K37: 7 | L37: = | M37: 0
C38: =HIDE!B16 -> Zone d'équipe | E38: =SUM(G38)*8 -> 0 | F38: =HIDE!M16 -> 0 | G38: 0 | J38: x | K38: 15 | L38: = | M38: 0
C39: =HIDE!B17 -> Salon | E39: =SUM(G39)*10 -> 0 | F39: =HIDE!M17 -> 0 | G39: 0 | J39: x | K39: 10 | L39: = | M39: 0
E40: =SUM(E36:E39) -> 0 | G40: =SUM(G36:G39) -> 0 | M40: =SUM(M36:M39) -> 0
B41: =HIDE!A18 -> COLLABORATIF FERMÉ | C41: =HIDE!B18 -> Salle de travail | E41: =SUM(G41)*6 -> 0 | F41: =HIDE!M18 -> 0 | G41: 0 | J41: x | K41: 16 | L41: = | M41: 0
C42: =HIDE!B19 -> Salle de projet | E42: =SUM(G42)*8 -> 0 | F42: =HIDE!M19 -> 0 | G42: 0 | J42: x | K42: 20 | L42: = | M42: 0
C43: =HIDE!B20 -> Salle de réunion moyenne | E43: =SUM(G43)*12 -> 0 | F43: =HIDE!M20 -> 0 | G43: 0 | J43: x | K43: 32 | L43: = | M43: 0
C44: =HIDE!B21 -> Grande salle de réunion | E44: =SUM(G44)*20 -> 0 | F44: =HIDE!M21 -> 0 | G44: 0 | J44: x | K44: 60 | L44: = | M44: 0
E45: =SUM(E41:E44) -> 0 | G45: =SUM(G41:G44) -> 0 | M45: =SUM(M41:M44) -> 0
B46: Nombre estimé de sièges collaboratifs | E46: =SUM(E40+E45) -> 0 | G46: =SUM(G40+G45) -> 0 | L46: Total de points de travail collaboratifs | M46: =SUM(M40+M45) -> 0

Sheet Annexe
A1: ANNEXE: DÉTAILS DES POINTS DE TRAVAIL DU Milieu de travail GC | G1: Retour à «À propos du Cahier»
A3: POINTS DE TRAVAIL | B3: Un point de travail est un espace où quelqu'un peut effectuer son travail et est conçu spécifiquement pour prendre en charge différentes exigences fonctionnelles et/ou préférences personnelles. Chaque point de travail est équipé de mobilier et d'outils numériques qui prennent en charge une variété de tâches et divers degrés d'interaction ou de concentration.
B4: Nom des points de travail | C4: Activité et durée typique | D4: Nombre de siège | E4: Niveau de confidentialité visuel | F4: Niveau de confidentialité acoustique | G4: Taille typique | H4: Zone recommendée
A5: =HIDE!A6 -> PRIMAIRE INDIVIDUEL OUVERT | B5: =HIDE!B6 -> Poste de travail | C5: Travail de concentration sur le moyen-long terme | D5: 1 | E5: Faible-Moyen | F5: Faible | G5: =[1]HIDE!C6 -> 3.5 | H5: Toutes
B6: =HIDE!B7 -> Capsule de travail | C6: Travail de concentration à court et moyen terme dans un mobilier semi-fermé | D6: 1 | E6: Faible-Moyen | F6: Faible | G6: =[1]HIDE!C7 -> 2.5 | H6: Tranquille/Transitionnelle
A7: =HIDE!A8 -> PRIMAIRE INDIVIDUEL FERMÉ | B7: =HIDE!B8 -> Salle de concentration | C7: Travail de concentration sur le moyen-long terme | D7: 1 | E7: Moyen-Élevé | F7: Moyen | G7: =[1]HIDE!C8 -> 7.5 | H7: Toutes
B8: =HIDE!B9 -> Espace ministériel dédié (sous-ministre ou ministre) | C8: Bureau dédié (dont la salle de bain de 9m2) pour un Ministre | D8: 1 | E8: Moyen-Élevé | F8: Moyen-Élevé | G8: =[1]HIDE!C9 -> 29 | H8: Transitionnelle
B9: =HIDE!B10 -> Salle d'étdue (5m2 par occupant) | C9: Salle de concentration partagée à court, moyen et long terme pour un travail ciblé avec une variété de points de travail individuels | D9: 1 | E9: Faible-Moyen | F9: Moyen | G9: =[1]HIDE!C10 -> 4 | H9: Tranquille
A10: =HIDE!A11 -> SECONDAIRE INDIVIDUEL | B10: =HIDE!B11 -> Capsule de concentration | C10: Travail de concentration à court et moyen terme dans un mobilier informels semi-fermé | D10: 1 | E10: Faible-Moyen | F10: Faible | G10: =[1]HIDE!C11 -> 2.5 | H10: Tranquille
B11: =HIDE!B12 -> Point de transition (1.5m2 par occupant) | C11: Espace de transition à court terme à utiliser entre les activités | D11: 1 | E11: Faible | F11: Faible | G11: =[1]HIDE!C12 -> 1.5 | H11: Toutes
B12: =HIDE!B13 -> Cabine / Salle Téléphonique | C12: Salle à court terme pour les appels téléphoniques | D12: 1 | E12: Moyen | F12: Moyen-Élevé | G12: =[1]HIDE!C13 -> 5 | H12: Toutes
A13: =HIDE!A14 -> COLLABORATIF OUVERT | B13: =HIDE!B14 -> Point de discussion | C13: Espace pour de brèves conversations impromptues | D13: 4 | E13: Faible | F13: Faible | G13: =[1]HIDE!C14 -> 4 | H13: Interactive/Transitionnelle
B14: =HIDE!B15 -> Enclave | C14: Espace de rencontre informel court-moyen terme, ouvert ou semi-fermé | D14: 4 | E14: Faible-Moyen | F14: Faible | G14: =[1]HIDE!C15 -> 5 | H14: Interactive/Transitionnelle
B15: =HIDE!B16 -> Zone d'équipe | C15: Zone informelle pour soutenir le travail d'équipe à moyen terme et la génération d'idées | D15: 8 | E15: Faible-Moyen | F15: Faible | G15: =[1]HIDE!C16 -> 15 | H15: Interactive
B16: =HIDE!B17 -> Salon | C16: Aire ouverte avec des meubles pour manger et/ou interagir socialement | D16: 10+ | E16: Faible | F16: Faible | G16: =[1]HIDE!C17 -> 10 | H16: Interactive/Transitionnelle
A17: =HIDE!A18 -> COLLABORATIF FERMÉ | B17: =HIDE!B18 -> Salle de travail | C17: Salle fermée pour travail d'équipe à court et moyen terme ou réunions informelles | D17: 6 | E17: Moyen-Élevé | F17: Moyen | G17: =[1]HIDE!C18 -> 16 | H17: Interactive/Transitionnelle
B18: =HIDE!B19 -> Salle de projet | C18: Salle fermée pour travail collaboratif ou créatif à moyen et long terme | D18: 8 | E18: Moyen-Élevé | F18: Moyen | G18: =[1]HIDE!C19 -> 20 | H18: Interactive/Transitionnelle
B19: =HIDE!B20 -> Salle de réunion moyenne | C19: Salle fermée pour travail d'équipe à court et moyen terme ou réunions | D19: 12 | E19: Moyen-Élevé | F19: Moyen-Élevé | G19: =[1]HIDE!C20 -> 32 | H19: Interactive/Transitionnelle
B20: =HIDE!B21 -> Grande salle de réunion | C20: Salle fermée pour réunions formelles et présentations | D20: 20+ | E20: Moyen-Élevé | F20: Moyen-Élevé | G20: =[1]HIDE!C21 -> 60 | H20: Interactive/Transitionnelle
A21: =HIDE!A22 -> ESPACE À USAGE GÉNÉRAL | B21: =HIDE!B22 -> Cuisinette | C21: Menuiserie de cuisine et appareils électroménagers uniquement - à combiner avec un salon pour inclure des sièges | D21: N/A | E21: Moyen | F21: Moyen | G21: =[1]HIDE!C22 -> 5 | H21: Interactive/Transitionnelle
B22: =HIDE!B23 -> Salle de mieux-être | C22: Salle de relaxation de courte à moyenne durée | D22: 1 | E22: Moyen-Élevé | F22: Moyen | G22: =[1]HIDE!C23 -> 7.5 | H22: Tranquille/Transitionnelle
B23: =HIDE!B24 -> Salle d'équipement | C23: Centre d'affaires et imprimantes | D23: N/A | E23: Faible | F23: Faible | G23: =[1]HIDE!C24 -> 5 | H23: Transitionnelle
B24: =HIDE!B25 -> Casiers (Espace par ETP) | C24: Casiers de rangement individuels dans une zone centralisée, bancs et vestiaires | D24: N/A | E24: Faible | F24: Faible | G24: =[1]HIDE!C25 -> 0.5 | H24: Transitionnelle
B25: =HIDE!B26 -> Rangement partagé | C25: Espace ouvert ou fermé pour les ressources partagées ou le classement | D25: N/A | E25: Faible | F25: Faible | G25: =[1]HIDE!C26 -> 5 | H25: Transitionnelle
B26: =HIDE!B27 -> Salle des serveurs/télécommunication dédiée (1 par étage) | C26: Pièce fermée pour que les systèmes de télécommunication soient accessibles depuis l'extérieur de la zone sécurisée à côté du hall de l'ascenseur | D26: N/A | E26: N/A | F26: N/A | G26: =[1]HIDE!C27 -> 10 | H26: N/A

Sheet HIDE (hidden)
A1: FORMULAS AND CALCULATIONS
A2: HEADINGS IN RED INDICATE COLUMNS WHERE DATA CAN BE ALTERED. HEADINGS IN BLACK ARE CALCULATED USING FORMULAS.
A3: Names input here are what the "Dashboard" and "Appendix" use to populate the name of workpoint categories | B3: Names input here are what the "Dashboard" and "Appendix" use to populate workpoint names | C3: This column identifies the m2 that the Reset button on the "Dashboard" uses in the Suggested Size column. This column is also used to populate the Suggested Size column on the "Appendix" tab. | D3: This column identifies the m2 at which cells in the Suggested Size column on the "Dashboard" turn orange. | E3: This is the factor used to calculate minimum permitted quantity (column "N" on this tab). | F3: These columns set the quantity baselines for a target occupancy of 100. Values may be determined by a formula or be a manual input. | K3: This is the factor used to calculate maximum permitted quantity (column "O" on this tab). | L3: This determines what activity profile on the "Dashboard" and displays the suggested quantities for a target occupancy of 100. | M3: This uses the Activity Profile column on this sheet and determines the suggested number of workpoints based on Target Occupancy input in the "Dashboard". These quantites are used to populate the Standard Allocation columns on the "Dashboard" | N3: These columns calculate, and round, the quantity range for each workpoint based on target occupancy (or SPS population for rows 28 to 32) result from m2 input in the "Dashboard". These quantities are used to determine when a cell should go blue or orange when a user adjusts the sliders.
A4: TYPE | B4: WORKPOINT | C4: SUGGESTED SIZE | D4: MAX. SIZE | F4: QTY. FOR 100 PEOPLE (1100m2u) | L4: ACTIVITY PROFILE | M4: SUGGESTED QTY. | N4: QTY. RANGE | P4: COMMENTS
E5: FACTOR | F5: MINIMUM | G5: AUTONOMOUS | H5: BALANCED | I5: INTERACTIVE | J5: MAXIMUM | K5: FACTOR | L5: =IF('Tableau de Bord'!C8=1,"AUTONOMOUS",IF('Tableau de Bord'!C8=2,"BALANCED","INTERACTIVE")) -> AUTONOMOUS | N5: LOW | O5: HIGH
A6: PRIMAIRE INDIVIDUEL OUVERT | B6: Poste de travail | C6: 3.5 | D6: 4.5 | E6: =F6/100 -> 0.15 | F6: 15 | G6: 40 | H6: 30 | I6: 20 | J6: 60 | K6: =J6/100 -> 0.6 | L6: =CHOOSE('Tableau de Bord'!$C$8, G6,H6,I6) -> 40 | M6: =ROUND('Tableau de Bord'!$E$14*HIDE!L6/100,0) -> 0 | N6: =ROUND('Tableau de Bord'!$E$14*E6, 0) -> 0 | O6: =ROUND('Tableau de Bord'!$E$14*K6, 0) -> 0
B7: Capsule de travail | C7: 2.5 | D7: 3.5 | E7: 0.02 | F7: 2 | G7: 5 | H7: 4 | I7: 3 | J7: 10 | K7: 0.1 | L7: =CHOOSE('Tableau de Bord'!$C$8, G7,H7,I7) -> 5 | M7: =ROUND('Tableau de Bord'!$E$14*HIDE!L7/100,0) -> 0 | N7: =ROUND('Tableau de Bord'!$E$14*E7, 0) -> 0 | O7: =ROUND('Tableau de Bord'!$E$14*K7, 0) -> 0
A8: PRIMAIRE INDIVIDUEL FERMÉ | B8: Salle de concentration | C8: 7.5 | D8: 10 | E8: 0.04 | F8: 4 | G8: 9 | H8: 8 | I8: 7 | J8: 12 | K8: 0.12 | L8: =CHOOSE('Tableau de Bord'!$C$8, G8,H8,I8) -> 9 | M8: =ROUND('Tableau de Bord'!$E$14*HIDE!L8/100,0) -> 0 | N8: =ROUND('Tableau de Bord'!$E$14*E8, 0) -> 0 | O8: =ROUND('Tableau de Bord'!$E$14*K8, 0) -> 0
B9: Espace ministériel dédié (sous-ministre ou ministre) | C9: 29 | D9: 29 | E9: 0 | F9: 0 | G9: 0 | H9: 0 | I9: 0 | J9: 0 | K9: 0 | L9: =CHOOSE('Tableau de Bord'!$C$8, G9,H9,I9) -> 0 | M9: =ROUND('Tableau de Bord'!$E$14*HIDE!L9/100,0) -> 0 | N9: =ROUND('Tableau de Bord'!$E$14*E9, 0) -> 0 | O9: =ROUND('Tableau de Bord'!$E$14*K9, 0) -> 0
B10: Salle d'étdue (5m2 par occupant) | C10: 5 | D10: 5 | E10: 0.04 | F10: 4 | G10: 8 | H10: 8 | I10: 8 | J10: 15 | K10: 0.15 | L10: =CHOOSE('Tableau de Bord'!$C$8, G10,H10,I10) -> 8 | M10: =ROUND('Tableau de Bord'!$E$14*HIDE!L10/100,0) -> 0 | N10: =ROUND('Tableau de Bord'!$E$14*E10, 0) -> 0 | O10: =ROUND('Tableau de Bord'!$E$14*K10, 0) -> 0
A11: SECONDAIRE INDIVIDUEL | B11: Capsule de concentration | C11: 4 | D11: 4 | E11: 0 | F11: 0 | G11: 2 | H11: 2 | I11: 2 | J11: 6 | K11: 0.06 | L11: =CHOOSE('Tableau de Bord'!$C$8, G11,H11,I11) -> 2 | M11: =ROUND('Tableau de Bord'!$E$14*HIDE!L11/100,0) -> 0 | N11: =ROUND('Tableau de Bord'!$E$14*E11, 0) -> 0 | O11: =ROUND('Tableau de Bord'!$E$14*K11, 0) -> 0
B12: Point de transition (1.5m2 par occupant) | C12: 1.5 | D12: 2 | E12: 0.08 | F12: 8 | G12: 12 | H12: 14 | I12: 16 | J12: 30 | K12: 0.3 | L12: =CHOOSE('Tableau de Bord'!$C$8, G12,H12,I12) -> 12 | M12: =ROUND('Tableau de Bord'!$E$14*HIDE!L12/100,0) -> 0 | N12: =ROUND('Tableau de Bord'!$E$14*E12, 0) -> 0 | O12: =ROUND('Tableau de Bord'!$E$14*K12, 0) -> 0
B13: Cabine / Salle Téléphonique | C13: 6.5 | D13: 6.5 | E13: 0.02 | F13: 2 | G13: 7 | H13: 6 | I13: 4 | J13: 10 | K13: 0.1 | L13: =CHOOSE('Tableau de Bord'!$C$8, G13,H13,I13) -> 7 | M13: =ROUND('Tableau de Bord'!$E$14*HIDE!L13/100,0) -> 0 | N13: =ROUND('Tableau de Bord'!$E$14*E13, 0) -> 0 | O13: =ROUND('Tableau de Bord'!$E$14*K13, 0) -> 0
A14: COLLABORATIF OUVERT | B14: Point de discussion | C14: 4 | D14: 8 | E14: 0 | F14: 0 | G14: 0 | H14: 0 | I14: 0 | J14: 5 | K14: 0.05 | L14: =CHOOSE('Tableau de Bord'!$C$8, G14,H14,I14) -> 0 | M14: =ROUND('Tableau de Bord'!$E$14*HIDE!L14/100,0) -> 0 | N14: =ROUND('Tableau de Bord'!$E$14*E14, 0) -> 0 | O14: =ROUND('Tableau de Bord'!$E$14*K14, 0) -> 0
B15: Enclave | C15: 7 | D15: 7 | E15: 0 | F15: 0 | G15: 1 | H15: 1 | I15: 2 | J15: 6 | K15: 0.06 | L15: =CHOOSE('Tableau de Bord'!$C$8, G15,H15,I15) -> 1 | M15: =ROUND('Tableau de Bord'!$E$14*HIDE!L15/100,0) -> 0 | N15: =ROUND('Tableau de Bord'!$E$14*E15, 0) -> 0 | O15: =ROUND('Tableau de Bord'!$E$14*K15, 0) -> 0
B16: Zone d'équipe | C16: 15 | D16: 20 | E16: 0.01 | F16: 1 | G16: 1 | H16: 1 | I16: 2 | J16: 4 | K16: 0.04 | L16: =CHOOSE('Tableau de Bord'!$C$8, G16,H16,I16) -> 1 | M16: =ROUND('Tableau de Bord'!$E$14*HIDE!L16/100,0) -> 0 | N16: =ROUND('Tableau de Bord'!$E$14*E16, 0) -> 0 | O16: =ROUND('Tableau de Bord'!$E$14*K16, 0) -> 0
B17: Salon | C17: 10 | D17: 15 | E17: 0.01 | F17: 1 | G17: 2 | H17: 2 | I17: 2 | J17: 3 | K17: 0.03 | L17: =CHOOSE('Tableau de Bord'!$C$8, G17,H17,I17) -> 2 | M17: =ROUND('Tableau de Bord'!$E$14*HIDE!L17/100,0) -> 0 | N17: =ROUND('Tableau de Bord'!$E$14*E17, 0) -> 0 | O17: =ROUND('Tableau de Bord'!$E$14*K17, 0) -> 0
A18: COLLABORATIF FERMÉ | B18: Salle de travail | C18: 16 | D18: 20 | E18: 0.01 | F18: 1 | G18: 3 | H18: 3 | I18: 4 | J18: 6 | K18: 0.06 | L18: =CHOOSE('Tableau de Bord'!$C$8, G18,H18,I18) -> 3 | M18: =ROUND('Tableau de Bord'!$E$14*HIDE!L18/100,0) -> 0 | N18: =ROUND('Tableau de Bord'!$E$14*E18, 0) -> 0 | O18: =ROUND('Tableau de Bord'!$E$14*K18, 0) -> 0
B19: Salle de projet | C19: 20 | D19: 25 | E19: 0.01 | F19: 1 | G19: 1 | H19: 2 | I19: 3 | J19: 6 | K19: 0.06 | L19: =CHOOSE('Tableau de Bord'!$C$8, G19,H19,I19) -> 1 | M19: =ROUND('Tableau de Bord'!$E$14*HIDE!L19/100,0) -> 0 | N19: =ROUND('Tableau de Bord'!$E$14*E19, 0) -> 0 | O19: =ROUND('Tableau de Bord'!$E$14*K19, 0) -> 0
B20: Salle de réunion moyenne | C20: 32 | D20: 40 | E20: 0.01 | F20: 1 | G20: 1 | H20: 2 | I20: 2 | J20: 4 | K20: 0.04 | L20: =CHOOSE('Tableau de Bord'!$C$8, G20,H20,I20) -> 1 | M20: =ROUND('Tableau de Bord'!$E$14*HIDE!L20/100,0) -> 0 | N20: =ROUND('Tableau de Bord'!$E$14*E20, 0) -> 0 | O20: =ROUND('Tableau de Bord'!$E$14*K20, 0) -> 0
B21: Grande salle de réunion | C21: 60 | D21: 70 | E21: 0 | F21: 0 | G21: 1 | H21: 1 | I21: 1 | J21: 2 | K21: 0.02 | L21: =CHOOSE('Tableau de Bord'!$C$8, G21,H21,I21) -> 1 | M21: =ROUNDDOWN('Tableau de Bord'!$E$14*HIDE!L21/100,0) -> 0 | N21: =ROUND('Tableau de Bord'!$E$14*E21, 0) -> 0 | O21: =ROUND('Tableau de Bord'!$E$14*K21, 0) -> 0
A22: ESPACE À USAGE GÉNÉRAL | B22: Cuisinette | C22: =IF('Tableau de Bord'!$E$14<25,5,IF(AND('Tableau de Bord'!$E$14>=25,'Tableau de Bord'!$E$14<50),10,15)) -> 5 | D22: N/A | E22: N/A | F22: 1 | G22: 1 | H22: 1 | I22: 1 | J22: 1 | K22: N/A | L22: =CHOOSE('Tableau de Bord'!$C$8, G22,H22,I22) -> 1 | M22: =IF('Tableau de Bord'!$E$14=0,0,ROUNDUP('Tableau de Bord'!$E$14/150,0)) -> 0 | N22: =ROUNDUP('Tableau de Bord'!$E$14/150, 0) -> 0 | O22: =ROUNDUP('Tableau de Bord'!$E$14/150, 0) -> 0 | P22: 1-5m2 for 1-24 occupants; 1-10m2 for 25-49 occupants; 1-15m2 for 50-150 occupants; 2-15m2 for 151-300 occupants and so on
B23: Salle de mieux-être | C23: 7.5 | D23: 10 | E23: N/A | F23: 1 | G23: 1 | H23: 1 | I23: 1 | J23: 2 | K23: N/A | L23: =CHOOSE('Tableau de Bord'!$C$8, G23,H23,I23) -> 1 | M23: =IF('Tableau de Bord'!$E$14=0,0,ROUNDUP('Tableau de Bord'!$E$14*HIDE!L23/100,0)) -> 0 | N23: 1 | O23: =ROUNDUP('Tableau de Bord'!$E$14/50, 0) -> 0 | P23: WAS: - 1s-7,5m2 for every 50 occupants New(Jan 2024) :1x-7.5m2 for every 100 occupants
B24: Salle d'équipement | C24: 5 | D24: 10 | E24: =F24/100 -> 0.01 | F24: 1 | G24: 1 | H24: 1 | I24: 1 | J24: 2 | K24: =J24/100 -> 0.02 | L24: =CHOOSE('Tableau de Bord'!$C$8, G24,H24,I24) -> 1 | M24: =IF('Tableau de Bord'!$E$14=0,0,ROUNDUP('Tableau de Bord'!$E$14*HIDE!L24/100,0)) -> 0 | N24: =ROUNDUP('Tableau de Bord'!$E$14*E24, 0) -> 0 | O24: =ROUNDUP('Tableau de Bord'!$E$14*K24, 0) -> 0 | P24: WAS: 1x-5m2 for every 50 occupants New(Jan 2024) :1x-5m2 for every 100 occupants
B25: Casiers (Espace par ETP) | C25: 0.5 | D25: N/A | E25: =F25/100 -> 0.5 | F25: 50 | G25: 100 | H25: 100 | I25: 100 | J25: 100 | K25: =J25/100 -> 1 | L25: =CHOOSE('Tableau de Bord'!$C$8, G25,H25,I25) -> 100 | M25: =ROUND('Tableau de Bord'!$E$14*HIDE!L25/100,0) -> 0 | N25: =ROUND('Tableau de Bord'!$E$14*E25, 0) -> 0 | O25: =ROUND('Tableau de Bord'!$E$14*K25, 0) -> 0 | P25: At least 1 per occupants (include space for coat closets and benches)
B26: Rangement partagé | C26: 5 | D26: 10 | E26: =F26/100 -> 0 | F26: 0 | G26: 0 | H26: 0 | I26: 0 | J26: 1 | K26: =J26/100 -> 0.01 | L26: =CHOOSE('Tableau de Bord'!$C$8, G26,H26,I26) -> 0 | M26: =ROUND('Tableau de Bord'!$E$14*HIDE!L26/100,0) -> 0 | N26: =ROUND('Tableau de Bord'!$E$14*E26, 0) -> 0 | O26: =ROUND('Tableau de Bord'!$E$14*K26, 0) -> 0 | P26: Default is 0. 1-5m2 per 100 occupants
B27: Salle des serveurs/télécommunication dédiée (1 par étage) | C27: 10 | D27: N/A | E27: N/A | F27: This workpoint always defaults to 1 regardless of m2, except when m2 = 0, then it defaults to 0 | K27: N/A | L27: =IF('Tableau de Bord'!E13=0,0,1) -> 0 | M27: =L27 -> 0 | N27: 0 | O27: =L27 -> 0 | P27: Default is 1, but can be removed if not needed
A28: POINT DE TRAVAIL SUPPLÉMENTAIRES POUR LA POPULATION DU LUP ADJACENT | B28: Cabine / Salle Téléphonique | C28: 6.5 | D28: 6.5 | E28: =F28/100 -> 0.04 | F28: 4 | G28: 6 | H28: 5 | I28: 4 | J28: 8 | K28: =J28/100 -> 0.08 | L28: =CHOOSE('Tableau de Bord'!$C$8, G28,H28,I28) -> 6 | M28: =ROUND('Tableau de Bord'!$E$17*HIDE!L28/100,0) -> 0 | N28: =ROUND('Tableau de Bord'!$E$17*E28,0) -> 0 | O28: =ROUND('Tableau de Bord'!$E$17*K28,0) -> 0
B29: Salon | C29: 10 | D29: 15 | E29: =F29/100 -> 0.02 | F29: 2 | G29: 2 | H29: 2 | I29: 2 | J29: 3 | K29: =J29/100 -> 0.03 | L29: =CHOOSE('Tableau de Bord'!$C$8, G29,H29,I29) -> 2 | M29: =ROUND('Tableau de Bord'!$E$17*HIDE!L29/100,0) -> 0 | N29: =ROUND('Tableau de Bord'!$E$17*E29,0) -> 0 | O29: =ROUND('Tableau de Bord'!$E$17*K29,0) -> 0
B30: Salle de travail | C30: 15 | D30: 20 | E30: =F30/100 -> 0.02 | F30: 2 | G30: 2 | H30: 3 | I30: 4 | J30: 6 | K30: =J30/100 -> 0.06 | L30: =CHOOSE('Tableau de Bord'!$C$8, G30,H30,I30) -> 2 | M30: =ROUND('Tableau de Bord'!$E$17*HIDE!L30/100,0) -> 0 | N30: =ROUND('Tableau de Bord'!$E$17*E30,0) -> 0 | O30: =ROUND('Tableau de Bord'!$E$17*K30,0) -> 0
B31: Cuisinette | C31: =IF('Tableau de Bord'!$E$17<25,5,IF(AND('Tableau de Bord'!$E$17>=25,'Tableau de Bord'!$E$17<50),10,15)) -> 5 | D31: N/A | E31: N/A | F31: 1 | G31: 1 | H31: 1 | I31: 1 | J31: 1 | K31: N/A | L31: =CHOOSE('Tableau de Bord'!$C$8, G31,H31,I31) -> 1 | M31: =IF('Tableau de Bord'!$E$17=0, 0, ROUNDUP('Tableau de Bord'!$E$17/150,0)) -> 0 | N31: =ROUNDUP('Tableau de Bord'!$E$17/150, 0) -> 0 | O31: =ROUNDUP('Tableau de Bord'!$E$17/150, 0) -> 0 | P31: 1-5m2 for 1-24 occupants; 1-10m2 for 25-49 occupants; 1-15m2 for 50-150 occupants; 2-15m2 for 151-300 occupants and so on
B32: Casiers (Espace par ETP) | C32: 0.5 | D32: N/A | E32: =F32/100 -> 1 | F32: 100 | G32: 100 | H32: 100 | I32: 100 | J32: 125 | K32: =J32/100 -> 1.25 | L32: =CHOOSE('Tableau de Bord'!$C$8, G32,H32,I32) -> 100 | M32: =ROUND('Tableau de Bord'!$E$17*HIDE!L32/100,0) -> 0 | N32: =ROUND('Tableau de Bord'!$E$17*E32, 0) -> 0 | O32: =ROUND('Tableau de Bord'!$E$17*K32, 0) -> 0
A33: AUTRE | B33: Espace de soutien personnalisé | C33: =ROUND('Tableau de Bord'!Q7*0.01,0) -> 0 | D33: =ROUND('Tableau de Bord'!Q7*0.015,0) -> 0 | E33: N/A | L33: =CHOOSE('Tableau de Bord'!$C$8, G33,H33,I33) -> 0 | M33: =CHOOSE('Tableau de Bord'!$C$8, H33,I33,J33) -> 0 | N33: 0 | O33: 0 | P33: Can be used as required. Default size is 1% of total space for planning. Minimum is 0% and Maximum is 1.5%
B34: Point de travail personnalisé | C34: 0 | D34: N/A | E34: N/A | L34: =CHOOSE('Tableau de Bord'!$C$8, G34,H34,I34) -> 0 | M34: =CHOOSE('Tableau de Bord'!$C$8, H34,I34,J34) -> 0 | N34: 0 | O34: 0 | P34: If adding a custom workpoint to support a specific function, specify quantity and size. Equal quantities of other workpoints will need to be reduced. Justification is required.
A36: ACTIVITY PROFILE DROPDOWN LIST
A37: Autonome
A38: Équilibré
A39: Interactif
